bitfinex/quotes_ETHUSD_20240910
["timestamp","ask_amount","ask_price","bid_price","bid_amount"]
[1725979532384,1.4421189,2339.1,2338.4,2.2599]
[1725979532719,5.57353681,2339.1,2338.4,2.2599]
[1725979533011,3.29165334,2338.9,2338.2,2.3029]
[1725979533217,0.8921189,2338.9,2338.2,2.3029]
[1725979533448,0.55735368,2339.0,2338.3,0.0855262]
[1725979533449,0.55,2338.8,2338.3,0.0855262]
[1725979533774,0.8921189,2339.0,2338.4,2.3029]
[1725979533987,1.78423781,2339.3,2338.3,0.32674883]
[1725979533988,0.8921189,2339.2,2338.6,2.3029]
[1725979534195,0.8921189,2339.3,2338.7,0.31579681]
[1725979534516,0.8921189,2339.3,2338.6,2.3029]
[1725979535025,0.8921189,2339.4,2338.8,2.2768]
[1725979535321,0.8921189,2339.5,2339.0,2.3486]
[1725979535527,0.8921189,2339.6,2339.0,2.3486]
[1725979535669,1.33817836,2339.7,2339.1,0.3289048]
[1725979535670,0.8921189,2339.7,2339.1,0.3289048]
[1725979535873,0.8921189,2339.8,2339.2,2.3486]
[1725979536107,1.33817836,2339.9,2339.2,2.9211748]
[1725979536108,0.8921189,2339.9,2339.2,2.9211748]
[1725979536701,0.8921189,2339.9,2339.2,2.3486]
[1725979536913,4.18377224,2339.9,2339.2,2.3486]
[1725979537075,3.29165334,2339.7,2339.2,2.3486]
[1725979537790,3.29165334,2339.7,2338.9,2.3899]
[1725979537791,0.55,2339.6,2338.9,2.3899]
[1725979537993,0.96837722,2339.6,2338.9,2.3899]
[1725979538194,1.86049612,2339.6,2338.9,2.3899]
[1725979538508,0.96837722,2339.6,2338.9,2.3899]
[1725979538679,1.86049612,2339.6,2338.9,2.3899]
[1725979538879,1.4421189,2339.6,2338.9,2.3899]
[1725979539178,0.55,2339.6,2338.9,2.3899]
[1725979539896,1.4421189,2339.6,2338.9,2.3899]
[1725979540226,0.55,2339.6,2338.9,2.3899]
[1725979540527,1.93093674,2339.6,2338.9,2.3899]
[1725979540879,1.03881784,2339.6,2338.9,2.3899]
[1725979541216,1.93093674,2339.6,2338.9,2.3899]
[1725979541419,1.03881784,2339.6,2338.9,2.3899]
[1725979541610,1.93093674,2339.6,2338.9,2.3899]
[1725979541985,0.8921189,2339.7,2339.0,0.08550418]
[1725979542181,1.33817836,2339.8,2339.1,2.354]
[1725979542487,1.33817836,2339.8,2339.3,2.2834]
[1725979542712,0.915919,2340.0,2339.3,2.2834]
[1725979543032,0.915919,2340.0,2339.3,2.36888913]
[1725979543033,0.0238001,2340.0,2339.3,2.36888913]
[1725979544736,0.0238001,2340.0,2339.3,2.2834]
[1725979544943,0.8921189,2339.9,2339.3,2.2834]
[1725979545425,1.7435109,2340.0,2339.3,2.2834]
[1725979545604,1.7435109,2340.0,2339.4,0.08548375]
[1725979545815,0.0238001,2340.0,2339.5,2.3578]
[1725979546131,0.0238001,2340.0,2339.6,0.08547739]
[1725979547238,0.0238001,2340.0,2339.7,2.2521]
[1725979547405,0.0238001,2340.0,2339.9,2.2521]
[1725979547608,0.0238001,2340.0,2339.9,2.68585583]
[1725979547800,0.0238001,2340.0,2339.9,2.2521]
[1725979550134,0.0238001,2340.0,2339.5,2.3817]
[1725979550340,0.0238001,2340.0,2339.6,0.08547336]
[1725979551570,0.0238001,2340.0,2339.5,2.46717333]
[1725979552526,0.0238001,2340.0,2339.5,2.3817]
[1725979552837,0.0238001,2340.0,2339.5,2.92841781]
[1725979553037,0.0238001,2340.0,2339.6,0.08547806]
[1725979553249,0.0238001,2340.0,2339.7,2.3962]
[1725979553397,0.0238001,2340.0,2339.8,0.08546526]
[1725979553741,0.0238001,2340.0,2339.7,2.3962]
[1725979554536,0.0238001,2340.0,2339.4,2.53557738]
[1725979554704,0.0238001,2340.0,2339.4,2.4501]
[1725979554911,0.0238001,2340.0,2339.5,0.08548377]
[1725979555558,0.0238001,2340.0,2339.6,2.4337]
[1725979555849,0.0238001,2340.0,2339.6,2.51917796]
[1725979556200,0.0238001,2340.0,2339.7,0.08546861]
[1725979556445,0.0238001,2340.0,2339.7,0.08546739]
[1725979558744,0.0238001,2340.0,2339.6,2.4337]
[1725979558944,0.0238001,2340.0,2339.4,2.3424]
[1725979559113,0.80960389,2340.0,2339.4,2.3424]
[1725979559449,0.25960389,2340.0,2339.5,0.08548169]
[1725979560349,0.0238001,2340.0,2339.5,0.08548169]
[1725979560645,0.55,2339.9,2339.5,0.08548349]
[1725979560971,0.0238001,2340.0,2339.4,2.42787762]
[1725979561306,0.0238001,2340.0,2339.4,2.3424]
[1725979561501,0.85420984,2340.0,2339.4,2.3424]
[1725979562158,3.3055189,2339.9,2339.0,5.2707]
[1725979562303,3.3055189,2339.9,2339.1,3.0854915]
[1725979562304,0.55,2339.8,2339.1,3.0854915]
[1725979562509,1.09979071,2339.8,2339.1,3.0]
[1725979562747,5.62120302,2339.7,2338.9,7.38]
[1725979563052,2.20343016,2339.6,2338.7,2.2519]
[1725979563210,2.20343016,2339.6,2338.8,0.08550468]
[1725979563410,1.31131126,2339.6,2338.8,0.08550468]
[1725979563859,2.20343016,2339.6,2338.8,0.08550468]
[1725979564013,0.91628115,2339.5,2338.8,0.08550468]
[1725979564360,2.23029726,2339.8,2339.0,5.70770302]
[1725979564580,7.36,2339.9,2339.1,0.08548596]
[1725979564712,9.06585409,2339.9,2339.1,0.86480486]
[1725979565463,2.3432,2339.8,2338.8,3.0]
[1725979565612,4.17982192,2339.7,2338.8,0.08550319]
[1725979565819,1.39112003,2339.6,2338.8,3.08550319]
[1725979566039,1.39112003,2339.6,2338.8,3.37320621]
[1725979566253,0.55,2339.6,2338.8,3.37320621]
[1725979566556,0.55,2339.7,2338.8,3.37320621]
[1725979567234,8.2521189,2339.9,2339.2,3.28770302]
[1725979567453,0.0238001,2340.0,2339.3,2.77695291]
[1725979567956,0.915919,2340.0,2339.3,2.77695291]
[1725979568114,0.915919,2340.0,2339.4,6.56539831]
[1725979568317,0.0238001,2340.0,2339.5,0.08547465]
[1725979568548,0.0238001,2340.0,2339.4,3.36317003]
[1725979568760,0.0238001,2340.0,2339.5,0.572587]
[1725979568927,0.0238001,2340.0,2339.6,0.08547464]
[1725979569113,0.0238001,2340.0,2339.5,0.65806164]
[1725979569463,0.0238001,2340.0,2339.5,0.08547464]
[1725979570044,0.5738001,2340.0,2339.5,0.08547464]
[1725979570322,0.0238001,2340.0,2339.5,0.08547464]
[1725979572716,0.0238001,2340.0,2339.4,3.36317194]
[1725979572917,1.69132874,2340.0,2339.4,3.08548232]
[1725979573226,1.465919,2340.0,2339.4,0.08548229]
[1725979573448,1.465919,2340.0,2339.4,3.08548229]
[1725979573449,0.0238001,2340.0,2339.4,3.08548229]
[1725979573822,0.0238001,2340.0,2339.6,2.348]
[1725979574016,0.0238001,2340.0,2339.9,5.63570302]
[1725979574216,0.0238001,2340.0,2339.9,8.72116152]
[1725979575314,0.0238001,2340.0,2339.9,2.348]
[1725979575519,0.0238001,2340.0,2339.7,0.08546408]
[1725979575816,0.0238001,2340.0,2339.6,2.348]
[1725979576015,0.0238001,2340.0,2339.3,9.728]
[1725979576256,2.4057001,2340.0,2339.4,0.08548127]
[1725979576470,0.55,2339.9,2339.4,0.08548127]
[1725979576959,0.55,2339.9,2339.3,2.348]
[1725979577165,3.83770302,2339.9,2339.0,2.4475]
[1725979577462,2.2576,2339.6,2338.6,7.38]
[1725979577671,1.56393836,2339.5,2338.4,2.4475]
[1725979577874,0.55,2339.4,2338.4,2.4475]
[1725979578171,0.8921189,2339.3,2338.5,0.0855074]
[1725979578348,0.55,2339.2,2338.5,0.0855074]
[1725979578519,0.55,2339.2,2338.5,3.37321042]
[1725979578863,0.8921189,2339.5,2338.9,3.28770302]
[1725979579033,2.23029726,2339.6,2339.1,3.28770302]
[1725979579365,4.26833781,2339.9,2339.2,0.08548438]
[1725979579366,0.8921189,2339.7,2339.2,0.08548438]
[1725979579575,0.8921189,2339.7,2339.2,0.98576103]
[1725979579717,0.8921189,2339.9,2339.3,0.08548286]
[1725979580037,0.8921189,2339.8,2339.3,3.80908057]
[1725979580368,0.0238001,2340.0,2339.5,3.28770302]
[1725979580667,0.0238001,2340.0,2339.6,3.08547531]
[1725979580962,0.915919,2340.0,2339.4,2.3008]
[1725979581171,0.8921189,2339.9,2339.3,3.08548408]
[1725979581372,1.11752864,2339.9,2339.3,0.08548408]
[1725979581862,1.4421189,2339.8,2339.3,0.08548408]
[1725979582019,0.8921189,2339.7,2339.2,3.08548415]
[1725979582220,0.8921189,2339.5,2338.9,1.25319767]
[1725979582437,0.55,2339.4,2338.9,1.3386978]
[1725979582634,1.4421189,2339.4,2338.9,1.25319767]
[1725979582835,1.28482079,2339.3,2338.9,1.25319767]
[1725979583154,0.8921189,2339.3,2338.9,3.54739767]
[1725979583346,2.78029726,2339.4,2339.0,0.08550012]
[1725979583564,1.4421189,2339.4,2338.9,1.25319767]
[1725979584040,1.4421189,2339.4,2339.0,0.08550006]
[1725979584436,4.26007241,2339.4,2338.9,1.25319767]
[1725979584651,0.8921189,2339.3,2338.9,1.25319767]
[1725979584976,0.55,2339.2,2338.9,1.25319767]
[1725979587377,4.15613187,2339.4,2338.9,1.25319767]
[1725979587378,0.75600787,2339.4,2339.0,0.08550526]
[1725979587582,0.75600787,2339.4,2338.9,1.25319767]
[1725979588091,4.99492467,2339.7,2338.9,1.25319767]
[1725979588092,3.12241617,2339.7,2339.1,2.4041]
[1725979588240,1.33817836,2339.7,2339.2,0.33444413]
[1725979588445,1.33817836,2339.8,2339.3,0.08548397]
[1725979588760,1.33817836,2339.7,2339.3,0.08548397]
[1725979588946,1.33817836,2339.8,2339.3,0.08548397]
[1725979589596,1.33817836,2339.8,2339.0,3.0]
[1725979589597,1.33817836,2339.6,2339.0,3.0]
[1725979589778,1.33817836,2339.6,2338.9,4.33869812]
[1725979590090,4.15003781,2339.7,2338.9,4.33869812]
[1725979590091,0.55,2339.5,2338.9,4.33869812]
[1725979590254,1.88817836,2339.6,2339.0,0.67251981]
[1725979590450,1.88817836,2339.6,2338.9,4.33869151]
[1725979590665,1.88817836,2339.6,2338.9,1.33869151]
[1725979590666,1.33817836,2339.5,2338.9,1.33869151]
[1725979590873,0.55,2339.4,2338.9,1.33869151]
[1725979591039,1.33817836,2339.6,2339.0,0.37251915]
[1725979591241,0.55,2339.5,2339.1,0.08549383]
[1725979591571,1.33817836,2339.7,2339.1,0.08549383]
[1725979591776,1.33817836,2339.8,2339.2,4.3865]
[1725979591973,1.33817836,2339.9,2339.3,3.08547435]
[1725979592181,0.0238001,2340.0,2339.3,3.08547435]
[1725979592182,0.0238001,2340.0,2339.5,2.0]
[1725979592476,0.0238001,2340.0,2339.6,2.47195732]
[1725979592839,0.0238001,2340.0,2339.6,5.47195732]
[1725979593045,0.0238001,2340.0,2339.7,0.74719573]
[1725979593285,0.0238001,2340.0,2339.5,0.08546353]
[1725979593490,0.0238001,2340.0,2339.4,3.08547927]
[1725979593802,1.36197846,2340.0,2339.4,3.71396586]
[1725979594085,0.55,2339.9,2339.4,3.71396586]
[1725979595481,1.88817836,2339.9,2339.4,3.71396586]
[1725979595667,1.33817836,2339.9,2339.4,3.71396586]
[1725979595870,0.0238001,2340.0,2339.4,3.71396586]
[1725979595871,0.0238001,2340.0,2339.5,0.60233659]
[1725979596082,0.0238001,2340.0,2339.6,0.08547333]
[1725979596453,0.0238001,2340.0,2339.7,2.3593]
[1725979596658,0.0238001,2340.0,2339.8,0.08546639]
[1725979596994,0.0238001,2340.0,2339.8,0.33849036]
[1725979597396,0.0238001,2340.0,2339.7,0.08546639]
[1725979598565,0.0238001,2340.0,2339.8,2.3303]
[1725979598855,0.0238001,2340.0,2339.9,0.08546347]
[1725979599065,0.0238001,2340.0,2339.9,0.32703982]
[1725979603697,0.0238001,2340.0,2339.9,0.24157635]
[1725979603883,0.0238001,2340.0,2339.8,0.08546292]
[1725979604754,0.0238001,2340.0,2339.9,2.3326]
[1725979605659,0.0238001,2340.0,2339.9,0.08545514]
[1725979606757,0.0238001,2340.0,2339.7,0.08546197]
[1725979606958,0.0238001,2340.0,2339.7,6.30319575]
[1725979607160,0.0238001,2340.0,2339.8,3.08545558]
[1725979607860,0.0238001,2340.0,2339.9,3.28699448]
[1725979608086,0.0238001,2340.0,2339.9,6.28699448]
[1725979608286,0.0238001,2340.0,2339.9,6.372447]
[1725979608495,0.0238001,2340.0,2339.9,9.67546563]
[1725979612070,0.0238001,2340.0,2339.9,4.01577115]
[1725979612970,0.0238001,2340.0,2339.9,7.30276563]
[1725979620121,0.0238001,2340.0,2339.9,4.01577115]
[1725979620327,0.0238001,2340.0,2339.9,0.08545252]
[1725979620525,0.0238001,2340.0,2339.8,0.08545689]
[1725979621397,0.0238001,2340.0,2339.5,3.88933107]
[1725979621398,0.0238001,2340.0,2339.6,0.08546223]
[1725979621594,0.0238001,2340.0,2339.9,3.28699448]
[1725979621795,0.0238001,2340.0,2339.9,3.37244881]
[1725979622504,0.0238001,2340.0,2339.6,0.83456933]
[1725979622707,0.0238001,2340.0,2339.8,0.08545496]
[1725979623828,0.0238001,2340.0,2339.6,0.08546555]
[1725979624132,2.4,2339.7,2338.9,7.38]
[1725979624301,5.68699448,2339.5,2338.9,0.08550141]
[1725979624627,5.68699448,2339.5,2338.6,0.08550142]
[1725979624628,3.28699448,2339.3,2338.6,0.08550142]
[1725979624790,2.8667,2339.2,2338.3,2.4428]
[1725979624983,3.28699448,2339.1,2338.2,2.66909722]
[1725979625180,2.2673,2339.0,2338.2,5.28699448]
[1725979625405,2.2673,2339.0,2338.2,2.0]
[1725979625578,5.55429448,2339.0,2338.1,0.0238001]
[1725979625796,1.17114755,2338.9,2338.1,0.0238001]
[1725979626001,5.63009448,2338.8,2338.1,0.0238001]
[1725979626193,1.17114755,2338.9,2338.1,0.0238001]
[1725979626194,2.3266,2338.3,2338.1,0.0238001]
[1725979626394,3.83699448,2338.2,2338.1,0.0238001]
[1725979626637,4.45335393,2338.2,2338.1,0.0238001]
[1725979626784,8.11813229,2338.2,2338.1,0.0238001]
[1725979626986,11.11813229,2338.2,2338.1,0.0238001]
[1725979627283,12.90328035,2338.2,2338.1,0.0238001]
[1725979627489,9.77995393,2338.2,2338.1,0.0238001]
[1725979627892,10.6725789,2338.2,2338.1,0.0238001]
[1725979628130,11.11896745,2338.2,2338.1,0.0238001]
[1725979628337,10.67159748,2338.2,2338.1,0.0238001]
[1725979628495,7.384603,2338.2,2338.1,0.0238001]
[1725979628693,9.77995393,2338.2,2338.1,0.0238001]
[1725979629839,2.8766,2338.2,2338.1,0.0238001]
[1725979630138,2.3266,2338.2,2338.1,0.0238001]
[1725979630343,2.40639749,2338.9,2338.1,0.0238001]
[1725979630344,2.4502,2338.5,2338.1,0.0238001]
[1725979630523,0.89164355,2338.9,2338.1,0.0238001]
[1725979630524,3.27404355,2338.9,2338.1,0.0238001]
[1725979630833,2.67118381,2338.9,2338.1,0.10932459]
[1725979631533,2.3824,2338.9,2338.1,0.10932459]
[1725979631835,2.3824,2339.3,2338.1,0.10932459]
[1725979632403,2.3824,2339.3,2338.1,2.10932459]
[1725979632917,2.3824,2339.3,2338.1,5.10932459]
[1725979633104,0.23824,2339.2,2338.2,0.73982246]
[1725979633304,0.23824,2339.2,2338.3,0.0855172]
[1725979633913,0.55,2339.1,2338.3,0.0855172]
[1725979634501,0.55,2339.1,2338.3,0.08552123]
[1725979634936,0.867064,2339.1,2338.3,0.67043561]
[1725979635138,0.55,2339.1,2338.3,0.67043561]
[1725979635440,0.55,2339.2,2338.3,0.67043561]
[1725979636011,2.3824,2339.3,2338.4,2.0]
[1725979636244,2.3824,2339.3,2338.5,0.08550364]
[1725979636462,4.05118712,2339.7,2338.5,0.08550364]
[1725979636463,2.2689,2339.7,2338.5,0.08550364]
[1725979636607,2.2689,2339.7,2338.6,2.4884]
[1725979636802,2.2689,2339.7,2338.7,0.34288741]
[1725979637118,2.2689,2339.7,2338.8,0.08549705]
[1725979639056,0.55,2339.6,2338.8,0.08549705]
[1725979639258,2.2689,2339.7,2338.8,0.08549705]
[1725979640264,2.2689,2339.7,2338.6,2.4884]
[1725979640412,0.77689,2339.6,2338.7,0.08550903]
[1725979640612,3.77689,2339.6,2338.7,0.08550903]
[1725979640814,0.604579,2339.5,2338.7,0.08550903]
[1725979641137,0.55,2339.4,2338.5,0.08550074]
[1725979642013,0.55,2339.4,2338.5,0.08551063]
[1725979644156,0.55,2339.4,2338.5,0.43816427]
[1725979644513,2.2689,2339.7,2338.5,3.43816427]
[1725979645962,0.55,2339.6,2338.5,3.43816427]
[1725979646167,2.2689,2339.7,2338.7,2.0]
[1725979646456,2.3736001,2340.0,2338.8,0.5181812]
[1725979646954,2.3736001,2340.0,2338.8,3.5181812]
[1725979647710,0.0238001,2340.0,2339.0,2.0]
[1725979647915,0.0238001,2340.0,2339.2,2.3348]
[1725979648166,0.0238001,2340.0,2339.3,2.08547466]
[1725979648474,0.0238001,2340.0,2339.0,3.0]
[1725979648615,2.4458,2339.9,2338.9,3.08549636]
[1725979648816,0.65207872,2339.8,2338.9,0.08549636]
[1725979649013,0.65207872,2339.8,2338.8,0.08549964]
[1725979649437,0.55,2339.7,2338.8,0.08549964]
[1725979649762,4.60118712,2339.7,2338.5,2.77885364]
[1725979649915,0.82532658,2339.6,2338.5,2.77885364]
[1725979650111,2.3111,2339.4,2338.6,0.08550366]
[1725979650327,2.3111,2339.4,2338.4,2.0]
[1725979650565,0.55,2339.3,2338.4,2.0]
[1725979653327,0.55,2339.3,2338.5,0.08551168]
[1725979653626,0.55,2339.3,2338.4,2.0]
[1725979653627,0.83611,2339.3,2338.4,2.0]
[1725979653857,0.55,2339.3,2338.4,2.0]
[1725979654203,4.05118712,2339.7,2338.6,2.3215]
[1725979654204,2.4348,2339.7,2338.6,2.3215]
[1725979654500,2.4348,2339.7,2338.7,0.32620078]
[1725979654640,2.4348,2339.7,2338.6,2.3215]
[1725979654641,5.4348,2339.7,2338.8,0.08549961]
[1725979655452,0.55,2339.6,2338.8,0.08549961]
[1725979655793,0.55,2339.6,2338.7,0.08550353]
[1725979655971,2.4348,2339.7,2338.8,0.08550353]
[1725979656357,2.4348,2339.7,2338.8,3.08550353]
[1725979656709,2.4348,2339.7,2338.9,0.56176535]
[1725979656873,2.4348,2339.7,2338.9,0.64726127]
[1725979657394,2.4348,2339.7,2338.9,0.08549592]
[1725979657395,0.55,2339.6,2338.9,0.08549592]
[1725979657560,0.55,2339.6,2338.7,0.08550068]
[1725979659898,0.55,2339.6,2338.4,2.0]
[1725979660056,0.29848,2339.5,2338.4,2.0]
[1725979660258,3.84082083,2339.4,2338.5,0.08551173]
[1725979661329,0.55,2339.4,2338.5,0.08551173]
[1725979661527,0.55,2339.4,2338.5,0.86793499]
[1725979661693,0.55,2339.4,2338.5,4.15875582]
[1725979661900,0.55,2339.4,2338.5,0.86793499]
[1725979662546,2.4348,2339.7,2338.8,2.2623]
[1725979662831,2.4348,2339.7,2338.9,0.08549125]
[1725979663895,0.55,2339.6,2338.9,0.08549125]
[1725979664136,0.55,2339.6,2338.9,1.14935246]
[1725979664443,0.89164355,2339.9,2339.1,2.4728]
[1725979664595,0.0238001,2340.0,2339.2,0.08547484]
[1725979664794,0.0238001,2340.0,2339.2,3.94614281]
[1725979665030,0.0238001,2340.0,2339.3,0.08547621]
[1725979666140,0.0238001,2340.0,2339.4,2.4558]
[1725979666362,0.0238001,2340.0,2339.7,2.4558]
[1725979666543,0.0238001,2340.0,2339.8,0.08545515]
[1725979666750,0.0238001,2340.0,2339.8,0.94442115]
[1725979666914,0.0238001,2340.0,2339.8,3.94442115]
[1725979669667,0.0238001,2340.0,2339.9,8.36660485]
[1725979669965,0.0238001,2340.0,2339.9,8.45204342]
[1725979670163,0.0238001,2340.0,2339.9,11.45204342]
[1725979670362,0.0238001,2340.0,2339.9,8.93473951]
[1725979670959,0.0238001,2340.0,2339.9,7.40363857]
[1725979671163,0.0238001,2340.0,2339.9,5.3182]
[1725979671867,0.0238001,2340.0,2339.9,4.3182]
[1725979672022,0.0238001,2340.0,2339.9,7.3182]
[1725979672361,0.0238001,2340.0,2339.9,11.36660485]
[1725979672532,0.0238001,2340.0,2339.9,13.68784503]
[1725979672733,0.0238001,2340.5,2340.4,2.0]
[1725979672939,0.0238001,2340.5,2340.4,4.44473042]
[1725979673267,0.0238001,2340.5,2340.4,7.44473042]
[1725979673469,0.0238001,2340.5,2340.4,3.82990346]
[1725979673625,0.0238001,2340.5,2340.4,0.08543042]
[1725979673825,0.0238001,2340.5,2340.4,3.0]
[1725979674030,0.0238001,2340.5,2340.3,0.08543802]
[1725979675331,0.0238001,2340.5,2340.2,0.08544534]
[1725979675536,0.0238001,2340.5,2339.9,1.14520622]
[1725979675537,0.0238001,2340.5,2340.0,0.08545629]
[1725979675854,2.4629,2340.4,2339.5,2.2952]
[1725979676055,2.4629,2340.4,2339.6,0.08546919]
[1725979676236,0.55,2340.3,2339.6,0.08546919]
[1725979677004,0.55,2340.3,2339.5,0.0854735]
[1725979677201,0.94283437,2340.3,2339.5,1.14597442]
[1725979677399,0.94283437,2340.3,2339.5,0.0854735]
[1725979678338,0.0238001,2340.5,2339.8,2.3171]
[1725979678484,0.0238001,2340.5,2340.0,4.04840485]
[1725979678686,0.0238001,2340.5,2340.1,0.4988336]
[1725979678921,0.0238001,2340.5,2340.1,0.085449]
[1725979679689,0.0238001,2340.5,2339.9,0.08545508]
[1725979680092,0.0238001,2340.5,2339.8,5.3171]
[1725979680305,0.31470011,2340.5,2339.9,0.08545748]
[1725979680553,2.4538,2340.3,2339.7,0.08546555]
[1725979680708,2.4538,2340.3,2339.6,0.08546555]
[1725979680907,0.55,2340.2,2339.6,0.08546555]
[1725979681341,0.85038,2340.2,2339.6,0.08546555]
[1725979681648,0.85038,2340.2,2339.4,0.08547273]
[1725979681815,0.55,2340.2,2339.4,0.08547273]
[1725979683756,0.55,2340.2,2339.3,3.49090728]
[1725979683905,2.4492,2339.9,2338.5,4.4673]
[1725979684266,2.69412,2339.8,2338.6,0.10930065]
[1725979684554,2.4492,2339.6,2338.6,0.10930065]
[1725979684703,2.4492,2339.6,2338.6,0.0238001]
[1725979684905,2.4492,2339.4,2338.6,0.0238001]
[1725979685124,2.4492,2339.2,2338.6,0.0238001]
[1725979685542,0.55,2339.1,2338.6,0.0238001]
[1725979686348,2.4492,2339.2,2338.6,0.0238001]
[1725979686515,0.55,2339.1,2338.6,0.0238001]
[1725979687310,0.84992,2339.1,2338.6,0.0238001]
[1725979687623,2.3546,2338.9,2338.6,0.0238001]
[1725979687946,0.55,2338.8,2338.6,0.0238001]
[1725979689047,2.3546,2338.9,2338.6,0.0238001]
[1725979690052,2.4751,2339.2,2338.6,0.0238001]
[1725979690251,0.55,2339.1,2338.6,0.0238001]
[1725979691241,0.85251,2339.1,2338.6,0.0238001]
[1725979692028,0.55,2339.1,2338.6,0.0238001]
[1725979692426,0.55,2339.3,2338.6,0.0238001]
[1725979692960,1.00739819,2339.6,2338.7,0.08550797]
[1725979693110,3.33524355,2339.7,2338.7,0.08550797]
[1725979693111,2.4436,2339.7,2338.7,0.08550797]
[1725979693311,2.93551771,2339.7,2338.8,2.4118]
[1725979693515,2.93551771,2339.7,2338.9,0.08549366]
[1725979693818,0.49191771,2339.7,2338.9,0.08549366]
[1725979694018,0.24492,2339.8,2338.9,0.08549366]
[1725979694415,0.89164355,2339.9,2339.0,2.0]
[1725979694615,1.33901352,2340.1,2339.1,0.08548025]
[1725979694811,3.19654355,2340.3,2339.4,2.0]
[1725979695016,2.3049,2340.3,2339.5,0.08546768]
[1725979695290,2.3049,2340.3,2339.5,0.59401445]
[1725979695783,0.91544365,2340.5,2339.7,2.0]
[1725979695784,0.0238001,2340.5,2339.7,2.0]
[1725979696001,0.0238001,2340.5,2339.8,0.08545466]
[1725979696184,0.0238001,2340.5,2340.3,2.0]
[1725979696350,0.0238001,2340.5,2340.4,2.43102973]
[1725979696552,0.0238001,2340.5,2340.4,3.27897319]
[1725979696753,0.0238001,2340.5,2340.4,6.27897319]
[1725979697751,0.0238001,2340.5,2340.4,6.27897387]
[1725979698172,0.0238001,2340.5,2340.4,6.19354346]
[1725979698372,0.0238001,2340.5,2340.4,6.27897611]
[1725979698683,0.0238001,2340.5,2340.4,6.27898003]
[1725979699094,0.0238001,2340.5,2340.4,0.93338003]
[1725979699381,0.0238001,2340.5,2340.1,3.08544204]
[1725979700310,0.0238001,2340.5,2340.4,4.3422]
[1725979700450,0.0238001,2340.5,2340.4,7.42761414]
[1725979702302,0.0238001,2341.5,2340.9,4.3893]
[1725979702506,0.0238001,2341.5,2340.9,11.43770485]
[1725979703760,0.0238001,2341.5,2340.9,5.0]
[1725979703959,0.0238001,2341.5,2340.7,3.0]
[1725979704170,0.0238001,2341.5,2340.8,1.23965971]
[1725979704390,0.0238001,2341.5,2340.8,0.08541922]
[1725979704805,0.0238001,2341.5,2340.3,6.04840485]
[1725979704806,0.0238001,2341.5,2340.3,2.0]
[1725979705104,0.0238001,2341.5,2340.5,0.08543214]
[1725979705258,0.0238001,2341.5,2340.3,2.0]
[1725979705695,0.0238001,2341.5,2340.1,2.4043]
[1725979705899,2.4247001,2341.0,2340.4,0.08543348]
[1725979709078,0.0238001,2341.0,2340.4,2.08543348]
[1725979709404,0.0238001,2341.0,2340.4,0.08543348]
[1725979709723,2.4972,2340.9,2340.4,0.08544401]
[1725979710721,2.4972,2340.9,2340.2,0.08544203]
[1725979711038,2.4972,2340.9,2340.2,0.69028252]
[1725979711206,2.4972,2340.9,2340.3,0.08544529]
[1725979712535,0.0238001,2341.0,2340.4,2.0]
[1725979712737,0.0238001,2341.0,2340.5,0.08543078]
[1725979713499,0.0238001,2341.0,2340.7,2.0]
[1725979713700,0.0238001,2341.0,2340.9,2.3469]
[1725979718216,0.0238001,2341.0,2340.8,3.08542368]
[1725979718418,0.0238001,2341.0,2340.8,0.08542368]
[1725979718622,0.0238001,2341.0,2340.8,0.99880653]
[1725979718825,0.0238001,2341.0,2340.8,3.99880653]
[1725979719035,0.0238001,2341.0,2340.9,2.3689]
[1725979719201,0.0238001,2341.0,2340.9,5.3689]
[1725979719557,0.0238001,2341.0,2340.9,5.4543057]
[1725979719701,0.0238001,2341.0,2340.9,6.59961692]
[1725979720846,0.0238001,2341.0,2340.9,4.23071692]
[1725979721052,0.0238001,2341.0,2340.9,1.23071692]
[1725979722457,0.0238001,2341.0,2340.9,0.0854057]
[1725979723551,0.0238001,2341.0,2340.8,0.08542138]
[1725979724556,0.0238001,2341.0,2340.9,2.3912]
[1725979725228,0.0238001,2341.0,2340.9,6.43960485]
[1725979725450,0.0238001,2341.0,2340.9,11.28748158]
[1725979725749,0.0238001,2341.0,2340.9,10.73295742]
[1725979726892,0.0238001,2341.0,2340.9,6.68455257]
[1725979727229,0.0238001,2341.0,2340.9,6.85565357]
[1725979728231,0.0238001,2341.0,2340.9,4.46445357]
[1725979728436,0.0238001,2341.0,2340.9,0.25649853]
[1725979728874,0.0238001,2341.0,2340.9,0.08539753]
[1725979729170,0.0238001,2341.0,2340.8,0.08541872]
[1725979732384,0.0238001,2341.0,2340.7,5.0]
[1725979732667,0.0238001,2341.0,2340.8,0.08542005]
[1725979732910,0.0238001,2341.0,2340.8,3.08542005]
[1725979733046,0.0238001,2341.0,2340.8,0.08542005]
[1725979733686,2.3975,2340.9,2340.5,0.08542765]
[1725979733834,0.0238001,2341.0,2340.5,0.08542765]
[1725979735139,2.396,2340.9,2340.5,0.08542765]
[1725979735351,2.396,2340.9,2340.2,7.38]
[1725979735549,2.63798001,2340.9,2340.3,0.08544081]
[1725979737421,2.396,2340.9,2340.3,0.08544081]
[1725979738782,2.396,2340.9,2340.1,2.0]
[1725979740094,2.396,2340.9,2340.2,0.08544285]
[1725979740281,0.0238001,2341.0,2340.2,0.08544285]
[1725979740282,0.0238001,2341.0,2340.4,2.0]
[1725979740499,0.0238001,2341.0,2340.5,0.94700373]
[1725979740935,0.0238001,2341.0,2340.5,3.94700373]
[1725979743311,0.0238001,2341.0,2340.7,2.0]
[1725979743617,0.0238001,2341.0,2340.8,0.08541809]
[1725979744426,0.0238001,2341.0,2340.6,3.0]
[1725979744631,2.3080001,2341.0,2340.6,0.08543121]
[1725979744842,3.51960802,2341.0,2340.1,2.0]
[1725979745148,3.51960802,2341.0,2340.2,0.08544061]
[1725979745304,3.51960802,2341.0,2340.2,0.76682426]
[1725979745505,3.51960802,2341.0,2340.3,0.08544114]
[1725979746311,3.51960802,2341.0,2340.2,3.0]
[1725979746312,0.89164355,2340.9,2340.2,3.0]
[1725979746620,0.66438715,2340.9,2340.3,0.08544209]
[1725979747153,1.5560307,2340.9,2340.3,0.08544209]
[1725979747454,0.66438715,2340.9,2340.3,0.08544209]
[1725979747619,2.3080001,2341.0,2340.3,0.08544209]
[1725979748146,3.19964365,2341.0,2340.3,0.08544209]
[1725979748607,3.19964365,2341.0,2340.1,5.0]
[1725979748608,0.89164355,2340.9,2340.1,5.0]